[Event "Josef Kupper Memorial 2019"]
[Site "Zurich"]
[Date "2019.08.14"]
[Round "1.11"]
[White "Kelecevic, Nedeljko"]
[Black "Tabatabaei, M.amin"]
[Result "0-1"]
[ECO "A40"]
[WhiteElo "2186"]
[BlackElo "2601"]
[Annotator "ChessBase"]
[PlyCount "70"]
[EventDate "2019.08.13"]
[EventType "swiss"]
[EventCountry "SUI"]
[SourceTitle "playchess.com"]
[Source "ChessBase"]
[SourceQuality "1"]
[TimeControl "40/5400+30:1800+30"]

1. d4 {[%emt 0:00:47]} e6 {[%emt 0:00:00]} 2. c4 {[%emt 0:01:58]} b6 {[%emt 0:00:00]} 3. a3 {[%emt 0:01:06]} Ba6 {[%emt 0:02:26]} 4. e3 {[%emt 0:00:53]} d5 {[%emt 0:00:24]} 5. Nd2 {[%emt 0:02:54]} Nf6 {[%emt 0:00:12]} 6. Ngf3 {[%emt 0:00:40]} Be7 {[%emt 0:02:14]} 7. Bd3 {[%emt 0:01:36]} O-O {[%emt 0:02:20]} 8. Qe2 {[%emt 0:02:43]} c5 {[%emt 0:01:32]} 9. b3 {[%emt 0:09:03]} Nc6 {[%emt 0:02:11]} 10. Bb2 {[%emt 0:03:31]} cxd4 {[%emt 0:08:49]} 11. exd4 {[%emt 0:00:47]} Rc8 {[%emt 0:00:10]} 12. O-O {[%emt 0:01:30]} Re8 {[%emt 0:00:06]} 13. Rac1 {[%emt 0:01:59]} Bf8 {[%emt 0:00:14]} 14. Rfd1 {[%emt 0:01:31]} g6 {[%emt 0:03:05]} 15. Re1 {[%emt 0:11:51]} dxc4 {[%emt 0:13:37]} 16. bxc4 {[%emt 0:00:20]} Bg7 {[%emt 0:00:06]} 17. Nb3 {[%emt 0:07:34]} Re7 {[%emt 0:08:49]} 18. Red1 {[%emt 0:11:04]} Bb7 {[%emt 0:02:08]} 19. Ne5 {[%emt 0:12:02]} a5 {[%emt 0:02:10]} 20. Re1 {[%emt 0:10:11]} Nh5 {[%emt 0:03:41]} 21. Qe3 {[%emt 0:03:16]} Nxe5 {[%emt 0:09:29]} 22. dxe5 {[%emt 0:00:14]} Bxg2 {[%emt 0:00:12]} 23. Nd4 {[%emt 0:04:00]} Ba8 {[%emt 0:01:22]} 24. Be2 {[%emt 0:02:56]} Rd7 {[%emt 0:00:20]} 25. Bxh5 {[%emt 0:04:54]} gxh5 {[%emt 0:00:21]} 26. f3 {[%emt 0:00:20]} Qh4 {[%emt 0:01:58]} 27. Re2 {[%emt 0:00:27]} Rcd8 {[%emt 0:00:55]} 28. Rd1 {[%emt 0:00:38]} Rc7 {[%emt 0:12:59]} 29. Rg2 {[%emt 0:00:24]} Kh8 {[%emt 0:00:18]} 30. h3 {[%emt 0:02:58]} Rxc4 {[%emt 0:00:45]} 31. Kh2 {[%emt 0:00:29]} Rc5 {[%emt 0:08:14]} 32. Rxg7 {[%emt 0:00:11]} Kxg7 {[%emt 0:00:06]} 33. Nf5+ {[%emt 0:00:07]} exf5 {[%emt 0:00:05]} 34. e6+ {[%emt 0:00:07]} Kf8 {[%emt 0:00:32]} 35. Qh6+ {[%emt 0:00:57]} Ke7 0-1

[Event "Josef Kupper Memorial 2019"]
[Site "Zurich"]
[Date "2019.08.14"]
[Round "1.12"]
[White "Vaibhav, Suri"]
[Black "Hugentobler, Patrick"]
[Result "1-0"]
[ECO "A14"]
[WhiteElo "2591"]
[BlackElo "2149"]
[Annotator "ChessBase"]
[PlyCount "67"]
[EventDate "2019.08.13"]
[EventType "swiss"]
[EventCountry "SUI"]
[SourceTitle "playchess.com"]
[Source "ChessBase"]
[SourceQuality "1"]
[TimeControl "40/5400+30:1800+30"]

1. Nf3 {[%emt 0:00:00]} d5 {[%emt 0:00:00]} 2. c4 {[%emt 0:00:59]} e6 {[%emt 0:00:01]} 3. g3 {[%emt 0:01:01]} Nf6 {[%emt 0:00:39]} 4. Bg2 {[%emt 0:00:12]} Be7 {[%emt 0:01:54]} 5. O-O {[%emt 0:00:24]} dxc4 {[%emt 0:01:17]} 6. Qc2 {[%emt 0:11:31]} Bd7 {[%emt 0:02:28]} 7. Ne5 {[%emt 0:04:59]} Qc8 {[%emt 0:00:30]} 8. b3 {[%emt 0:13:06]} c5 {[%emt 0:04:26]} 9. bxc4 {[%emt 0:03:37]} Nc6 {[%emt 0:01:07]} 10. Nxd7 {[%emt 0:01:44]} Qxd7 {[%emt 0:02:14]} 11. Nc3 {[%emt 0:01:31]} O-O {[%emt 0:03:23]} 12. d3 {[%emt 0:00:53]} Rfd8 {[%emt 0:04:35]} 13. Rb1 {[%emt 0:00:26]} b6 {[%emt 0:01:28]} 14. Qa4 {[%emt 0:08:46]} Rac8 {[%emt 0:01:18]} 15. Bd2 {[%emt 0:06:31]} Bd6 {[%emt 0:02:51]} 16. Rfc1 {[%emt 0:03:57]} Bb8 {[%emt 0:03:04]} 17. Rb2 {[%emt 0:04:39]} Ng4 {[%emt 0:12:10]} 18. Qd1 {[%emt 0:02:14]} h5 {[%emt 0:02:37]} 19. Bh3 {[%emt 0:10:34]} Nce5 {[%emt 0:06:33]} 20. Qf1 {[%emt 0:01:38]} Qd4 {[%emt 0:08:15]} 21. Nd1 {[%emt 0:03:37]} h4 {[%emt 0:05:06]} 22. Bc3 {[%emt 0:01:57]} Qd6 {[%emt 0:00:11]} 23. f4 {[%emt 0:02:12]} hxg3 {[%emt 0:03:19]} 24. hxg3 {[%emt 0:00:14]} f5 {[%emt 0:00:23]} 25. fxe5 {[%emt 0:00:38]} Nxe5 {[%emt 0:00:15]} 26. Qf4 {[%emt 0:02:32]} Nxc4 {[%emt 0:02:34]} 27. Qxc4 {[%emt 0:05:47]} Qxg3+ {[%emt 0:00:13]} 28. Bg2 {[%emt 0:00:01]} Kf7 {[%emt 0:01:03]} 29. Kf1 {[%emt 0:00:55]} Rh8 {[%emt 0:02:26]} 30. Be1 {[%emt 0:01:28]} Qg5 {[%emt 0:00:46]} 31. e3 {[%emt 0:00:16]} Rh2 {[%emt 0:01:44]} 32. Bb7 {[%emt 0:02:27]} Rch8 {[%emt 0:02:47]} 33. Rxh2 {[%emt 0:00:42]} Rxh2 {[%emt 0:02:16]} 34. Rc2 {[%emt 0:00:13]} 1-0

[Event "Josef Kupper Memorial 2019"]
[Site "Zurich"]
[Date "2019.08.14"]
[Round "1.13"]
[White "Roesch, Mario"]
[Black "Idani, Pouya"]
[Result "0-1"]
[ECO "A41"]
[WhiteElo "2167"]
[BlackElo "2581"]
[Annotator "ChessBase"]
[PlyCount "72"]
[EventDate "2019.08.13"]
[EventType "swiss"]
[EventCountry "SUI"]
[SourceTitle "playchess.com"]
[Source "ChessBase"]
[SourceQuality "1"]
[TimeControl "40/5400+30:1800+30"]

1. d4 {[%emt 0:00:00]} d6 {[%emt 0:00:00]} 2. c4 {[%emt 0:00:29]} e5 {[%emt 0:00:07]} 3. Nf3 {[%emt 0:00:06]} e4 {[%emt 0:00:53]} 4. Ng5 {[%emt 0:01:06]} f5 {[%emt 0:00:05]} 5. Nh3 {[%emt 0:04:06]} Nf6 {[%emt 0:02:18]} 6. e3 {[%emt 0:02:33]} Be7 {[%emt 0:04:30]} 7. Nc3 {[%emt 0:01:44]} O-O {[%emt 0:00:17]} 8. Nf4 {[%emt 0:06:35]} c6 {[%emt 0:02:47]} 9. h4 {[%emt 0:00:19]} Na6 {[%emt 0:01:00]} 10. Rb1 {[%emt 0:08:05]} Nc7 {[%emt 0:01:17]} 11. b4 {[%emt 0:03:29]} Ne6 {[%emt 0:07:17]} 12. d5 {[%emt 0:06:33]} Nxf4 {[%emt 0:01:11]} 13. exf4 {[%emt 0:00:05]} Ng4 {[%emt 0:00:05]} 14. g3 {[%emt 0:13:11]} Bf6 {[%emt 0:00:20]} 15. Qb3 {[%emt 0:03:04]} Bd4 {[%emt 0:04:57]} 16. Nd1 {[%emt 0:00:08]} cxd5 {[%emt 0:00:09]} 17. cxd5 {[%emt 0:00:50]} Qb6 {[%emt 0:13:17]} 18. Ne3 {[%emt 0:01:00]} Bd7 {[%emt 0:00:20]} 19. Be2 {[%emt 0:10:46]} Rac8 {[%emt 0:00:53]} 20. Bd2 {[%emt 0:00:45]} Bb5 {[%emt 0:06:19]} 21. a4 {[%emt 0:04:17]} Bxe3 {[%emt 0:05:03]} 22. fxe3 {[%emt 0:05:13]} Bxe2 {[%emt 0:00:17]} 23. Kxe2 {[%emt 0:00:04]} Qc7 {[%emt 0:00:16]} 24. Rbc1 {[%emt 0:10:20]} Qf7 {[%emt 0:00:39]} 25. Rxc8 {[%emt 0:00:42]} Rxc8 {[%emt 0:00:06]} 26. Rc1 {[%emt 0:00:02]} Rxc1 {[%emt 0:09:45]} 27. Bxc1 {[%emt 0:00:06]} Nf6 {[%emt 0:00:17]} 28. Bb2 {[%emt 0:01:13]} Nxd5 {[%emt 0:01:29]} 29. Qc2 {[%emt 0:03:52]} h6 {[%emt 0:01:58]} 30. Qc8+ {[%emt 0:03:34]} Kh7 {[%emt 0:00:07]} 31. Bd4 {[%emt 0:02:33]} Nxb4 {[%emt 0:02:38]} 32. Bxa7 {[%emt 0:00:44]} Nd3 {[%emt 0:00:46]} 33. Kd2 {[%emt 0:05:17]} b5 {[%emt 0:02:41]} 34. a5 {[%emt 0:03:32]} Qa2+ {[%emt 0:00:05]} 35. Kd1 {[%emt 0:00:04]} Qb1+ {[%emt 0:00:11]} 36. Kd2 {[%emt 0:00:24]} Qe1+ {[%emt 0:00:12]} 0-1

[Event "Josef Kupper Memorial 2019"]
[Site "Zurich"]
[Date "2019.08.14"]
[Round "1.14"]
[White "Wagner, Dennis"]
[Black "Stysiak, Szymon"]
[Result "1-0"]
[ECO "E08"]
[WhiteElo "2579"]
[BlackElo "2162"]
[Annotator "ChessBase"]
[PlyCount "69"]
[EventDate "2019.08.13"]
[EventType "swiss"]
[EventCountry "SUI"]
[SourceTitle "playchess.com"]
[Source "ChessBase"]
[SourceQuality "1"]
[TimeControl "40/5400+30:1800+30"]

1. d4 {[%emt 0:00:00]} e6 {[%emt 0:00:05]} 2. c4 {[%emt 0:00:00]} Nf6 {[%emt 0:00:49]} 3. g3 {[%emt 0:00:00]} d5 {[%emt 0:00:34]} 4. Bg2 {[%emt 0:00:06]} Be7 {[%emt 0:01:12]} 5. Nf3 {[%emt 0:00:08]} O-O {[%emt 0:00:05]} 6. Qc2 {[%emt 0:02:12]} Nbd7 {[%emt 0:01:03]} 7. O-O {[%emt 0:00:38]} c5 {[%emt 0:03:51]} 8. Rd1 {[%emt 0:04:09]} cxd4 {[%emt 0:14:39]} 9. Nxd4 {[%emt 0:01:22]} Nb6 {[%emt 0:13:54]} 10. cxd5 {[%emt 0:08:24]} Nbxd5 {[%emt 0:04:56]} 11. e4 {[%emt 0:02:42]} Nb4 {[%emt 0:01:52]} 12. Qe2 {[%emt 0:00:38]} Qc7 {[%emt 0:08:20]} 13. a3 {[%emt 0:19:20]} e5 {[%emt 0:03:16]} 14. axb4 {[%emt 0:01:17]} exd4 {[%emt 0:00:06]} 15. Bf4 {[%emt 0:07:08]} Qb6 {[%emt 0:01:51]} 16. e5 {[%emt 0:00:04]} Ng4 {[%emt 0:12:54]} 17. h3 {[%emt 0:03:54]} Nh6 {[%emt 0:05:33]} 18. g4 {[%emt 0:14:59]} g5 {[%emt 0:00:30]} 19. Bd2 {[%emt 0:01:36]} Be6 {[%emt 0:10:55]} 20. Na3 {[%emt 0:00:08]} Rac8 {[%emt 0:00:52]} 21. Qb5 {[%emt 0:03:56]} f5 {[%emt 0:01:06]} 22. exf6 {[%emt 0:04:55]} Bxf6 {[%emt 0:00:05]} 23. Bxb7 {[%emt 0:02:03]} Rcd8 {[%emt 0:03:58]} 24. Re1 {[%emt 0:10:58]} Bb3 {[%emt 0:00:23]} 25. Qd3 {[%emt 0:02:21]} Qxb7 {[%emt 0:01:26]} 26. Qxb3+ {[%emt 0:00:02]} Kg7 {[%emt 0:01:23]} 27. Qd3 {[%emt 0:01:34]} Nf7 {[%emt 0:01:55]} 28. Nc4 {[%emt 0:00:02]} Rd7 {[%emt 0:00:19]} 29. Re6 {[%emt 0:01:24]} Qd5 {[%emt 0:02:02]} 30. Rae1 {[%emt 0:07:27]} h5 {[%emt 0:00:34]} 31. gxh5 {[%emt 0:00:15]} Nh8 {[%emt 0:02:54]} 32. R1e5 {[%emt 0:01:34]} Bxe5 {[%emt 0:01:30]} 33. Rxe5 {[%emt 0:00:02]} Qb7 {[%emt 0:00:09]} 34. Rxg5+ {[%emt 0:00:17]} Kf7 {[%emt 0:00:01]} 35. Nd6+ {[%emt 0:00:31]} 1-0

[Event "Josef Kupper Memorial 2019"]
[Site "Zurich"]
[Date "2019.08.14"]
[Round "1.15"]
[White "Akermann, Thomas"]
[Black "Epishin, Vladimir"]
[Result "0-1"]
[ECO "A46"]
[WhiteElo "2155"]
[BlackElo "2553"]
[Annotator "ChessBase"]
[PlyCount "76"]
[EventDate "2019.08.13"]
[EventType "swiss"]
[EventCountry "SUI"]
[SourceTitle "playchess.com"]
[Source "ChessBase"]
[SourceQuality "1"]
[TimeControl "40/5400+30:1800+30"]

1. d4 {[%emt 0:00:00]} Nf6 {[%emt 0:00:00]} 2. Nf3 {[%emt 0:00:00]} d6 {[%emt 0:00:38]} 3. c4 {[%emt 0:04:12]} g6 {[%emt 0:00:37]} 4. Nc3 {[%emt 0:01:04]} Bf5 {[%emt 0:00:10]} 5. e3 {[%emt 0:03:16]} Bg7 {[%emt 0:00:10]} 6. Bd3 {[%emt 0:01:30]} Bxd3 {[%emt 0:02:17]} 7. Qxd3 {[%emt 0:00:06]} O-O {[%emt 0:00:08]} 8. O-O {[%emt 0:00:52]} Nbd7 {[%emt 0:01:40]} 9. b3 {[%emt 0:08:30]} c5 {[%emt 0:01:21]} 10. d5 {[%emt 0:13:14]} b5 {[%emt 0:02:20]} 11. Rb1 {[%emt 0:03:57]} b4 {[%emt 0:02:57]} 12. Ne2 {[%emt 0:04:21]} a5 {[%emt 0:01:25]} 13. e4 {[%emt 0:00:58]} a4 {[%emt 0:00:39]} 14. h3 {[%emt 0:02:04]} Qc7 {[%emt 0:03:06]} 15. Bf4 {[%emt 0:08:05]} Ra6 {[%emt 0:02:15]} 16. Bh2 {[%emt 0:02:51]} Rfa8 {[%emt 0:02:43]} 17. Nd2 {[%emt 0:05:55]} axb3 {[%emt 0:01:27]} 18. axb3 {[%emt 0:00:13]} Ra2 {[%emt 0:03:06]} 19. f4 {[%emt 0:01:15]} Rxd2 {[%emt 0:02:06]} 20. Qxd2 {[%emt 0:00:15]} Nxe4 {[%emt 0:00:01]} 21. Qc2 {[%emt 0:07:11]} f5 {[%emt 0:00:27]} 22. g4 {[%emt 0:00:47]} Ndf6 {[%emt 0:00:21]} 23. Ra1 {[%emt 0:01:36]} Ra3 {[%emt 0:03:02]} 24. Rxa3 {[%emt 0:12:01]} bxa3 {[%emt 0:00:09]} 25. Ra1 {[%emt 0:00:21]} Qa5 {[%emt 0:04:55]} 26. Qc1 {[%emt 0:00:33]} fxg4 {[%emt 0:05:05]} 27. Rxa3 {[%emt 0:05:05]} Qb4 {[%emt 0:00:10]} 28. hxg4 {[%emt 0:04:34]} Nxg4 {[%emt 0:00:31]} 29. f5 {[%emt 0:01:04]} g5 {[%emt 0:02:10]} 30. Bg3 {[%emt 0:04:04]} Qb8 {[%emt 0:06:28]} 31. Qc2 {[%emt 0:02:17]} Nxg3 {[%emt 0:00:51]} 32. Nxg3 {[%emt 0:00:09]} Bd4+ {[%emt 0:00:09]} 33. Kh1 {[%emt 0:00:23]} Qf8 {[%emt 0:00:06]} 34. Nf1 {[%emt 0:03:17]} Qh6+ {[%emt 0:01:33]} 35. Kg2 {[%emt 0:00:00]} Nf2 {[%emt 0:00:21]} 36. Ng3 {[%emt 0:01:23]} Qh3+ {[%emt 0:01:14]} 37. Kf3 {[%emt 0:00:07]} g4+ {[%emt 0:00:14]} 38. Kf4 {[%emt 0:00:36]} Qh6# {[%emt 0:00:16]} 0-1

[Event "Josef Kupper Memorial 2019"]
[Site "Zurich"]
[Date "2019.08.14"]
[Round "1.16"]
[White "Puranik, Abhimanyu"]
[Black "Haas, Carmi"]
[Result "1-0"]
[ECO "C42"]
[WhiteElo "2550"]
[BlackElo "2146"]
[Annotator "ChessBase"]
[PlyCount "52"]
[EventDate "2019.08.13"]
[EventType "swiss"]
[EventCountry "SUI"]
[SourceTitle "playchess.com"]
[Source "ChessBase"]
[SourceQuality "1"]
[TimeControl "40/5400+30:1800+30"]

1. e4 {[%emt 0:00:00]} e5 {[%emt 0:00:00]} 2. Nf3 {[%emt 0:00:00]} Nf6 {[%emt 0:00:00]} 3. Nxe5 {[%emt 0:00:30]} d6 {[%emt 0:00:00]} 4. Nf3 {[%emt 0:00:04]} Nxe4 {[%emt 0:00:10]} 5. Nc3 {[%emt 0:00:19]} Nxc3 {[%emt 0:00:08]} 6. dxc3 {[%emt 0:00:05]} Be7 {[%emt 0:00:36]} 7. Bf4 {[%emt 0:01:25]} Nd7 {[%emt 0:00:17]} 8. Qd2 {[%emt 0:00:37]} Nc5 {[%emt 0:00:17]} 9. O-O-O {[%emt 0:00:43]} Be6 {[%emt 0:02:10]} 10. Kb1 {[%emt 0:01:40]} Qd7 {[%emt 0:00:15]} 11. Nd4 {[%emt 0:02:45]} O-O {[%emt 0:01:06]} 12. h4 {[%emt 0:02:45]} Rfe8 {[%emt 0:02:12]} 13. f3 {[%emt 0:01:03]} a6 {[%emt 0:05:48]} 14. h5 {[%emt 0:02:02]} Bf6 {[%emt 0:02:49]} 15. g4 {[%emt 0:02:50]} b5 {[%emt 0:05:57]} 16. Bh3 {[%emt 0:06:47]} Be5 {[%emt 0:00:46]} 17. Be3 {[%emt 0:03:54]} Bxd4 {[%emt 0:07:34]} 18. cxd4 {[%emt 0:04:39]} Bd5 {[%emt 0:00:13]} 19. dxc5 {[%emt 0:01:52]} Bxf3 {[%emt 0:00:21]} 20. Bg2 {[%emt 0:05:55]} Bxd1 {[%emt 0:01:00]} 21. Bxa8 {[%emt 0:03:03]} Bxg4 {[%emt 0:00:07]} 22. Bg2 {[%emt 0:01:11]} h6 {[%emt 0:01:40]} 23. cxd6 {[%emt 0:03:06]} cxd6 {[%emt 0:00:43]} 24. Qd4 {[%emt 0:06:58]} Qf5 {[%emt 0:01:38]} 25. Bc6 {[%emt 0:00:59]} Re6 {[%emt 0:01:59]} 26. Rg1 {[%emt 0:02:17]} Re8 1-0

[Event "Josef Kupper Memorial 2019"]
[Site "Zurich"]
[Date "2019.08.15"]
[Round "3.15"]
[White "Mamalis, Prokopios"]
[Black "Gabriel, Irineia G"]
[Result "*"]
[ECO "B20"]
[WhiteElo "1952"]
[BlackElo "1667"]
[Annotator "NA"]
[PlyCount "24"]
[EventDate "2019.08.14"]
[EventType "swiss"]
[EventCountry "SUI"]
[SourceTitle "playchess.com"]
[Source "ChessBase"]
[SourceQuality "1"]
[TimeControl "40/5400+30:1800+30"]

1. e4 {[%emt 0:00:45]} c5 {[%emt 0:00:00]} 2. Nc3 {[%emt 0:01:33]} d6 {[%emt 0:00:58]} 3. d4 {[%emt 0:02:05]} cxd4 {[%emt 0:01:06]} 4. Qxd4 {[%emt 0:01:09]} Nc6 {[%emt 0:00:39]} 5. Qd2 {[%emt 0:02:05]} g6 {[%emt 0:01:55]} 6. b3 {[%emt 0:03:19]} Bh6 {[%emt 0:02:18]} 7. f4 {[%emt 0:02:32]} e5 {[%emt 0:00:40]} 8. Nb5 {[%emt 0:02:06]} Bxf4 {[%emt 0:04:46]} 9. Qxd6 {[%emt 0:02:42]} Qxd6 {[%emt 0:16:59]} 10. Nxd6+ {[%emt 0:01:42]} Kf8 {[%emt 0:00:08]} 11. Ba3 {[%emt 0:13:07]} Nge7 {[%emt 0:00:53]} 12. c3 {[%emt 0:12:13]} Kg7 {[%emt 0:06:00]} *

[Event "Josef Kupper Memorial 2019"]
[Site "Zurich"]
[Date "2019.08.16"]
[Round "4.2"]
[White "Epishin, Vladimir"]
[Black "Kovalenko, Igor"]
[Result "1/2-1/2"]
[ECO "A04"]
[WhiteElo "2553"]
[BlackElo "2654"]
[Annotator "RC"]
[PlyCount "118"]
[EventDate "2019.08.14"]
[EventType "swiss"]
[EventCountry "SUI"]
[SourceTitle "playchess.com"]
[Source "ChessBase"]
[SourceQuality "1"]
[TimeControl "40/5400+30:1800+30"]

1. Nf3 {[%emt 0:00:00]} c5 {[%emt 0:04:05]} 2. e3 {[%emt 0:01:19]} g6 {[%emt 0:00:23]} 3. c4 {[%emt 0:01:03]} Bg7 {[%emt 0:00:03]} 4. Nc3 {[%emt 0:01:40]} Nf6 {[%emt 0:00:31]} 5. Qb3 {[%emt 0:02:45]} O-O {[%emt 0:00:23]} 6. Be2 {[%emt 0:00:06]} Nc6 {[%emt 0:00:09]} 7. O-O {[%emt 0:00:21]} Na5 {[%emt 0:24:21]} 8. Qa3 {[%emt 0:05:24]} b6 {[%emt 0:00:14]} 9. d4 {[%emt 0:01:44]} d6 {[%emt 0:00:08]} 10. Rd1 {[%emt 0:01:21]} Bf5 {[%emt 0:04:05]} 11. Bd2 {[%emt 0:06:19]} Nc6 {[%emt 0:03:34]} 12. Rac1 {[%emt 0:01:46]} h6 {[%emt 0:01:40]} 13. Be1 {[%emt 0:03:58]} g5 {[%emt 0:00:46]} 14. h3 {[%emt 0:15:09]} a6 {[%emt 0:08:58]} 15. Nd5 {[%emt 0:01:32]} Be4 {[%emt 0:05:28]} 16. dxc5 {[%emt 0:07:05]} bxc5 {[%emt 0:00:05]} 17. b4 {[%emt 0:00:12]} Bxd5 {[%emt 0:23:10]} 18. cxd5 {[%emt 0:00:15]} Nxb4 {[%emt 0:00:02]} 19. Bxb4 {[%emt 0:00:36]} cxb4 {[%emt 0:00:02]} 20. Qxb4 {[%emt 0:00:21]} Qd7 {[%emt 0:00:12]} 21. Rc4 {[%emt 0:04:37]} Rfb8 {[%emt 0:00:26]} 22. Qa3 {[%emt 0:01:05]} Rb6 {[%emt 0:01:17]} 23. h4 {[%emt 0:13:46]} g4 {[%emt 0:00:31]} 24. Nh2 {[%emt 0:00:10]} h5 {[%emt 0:00:39]} 25. Nf1 {[%emt 0:00:10]} Qf5 {[%emt 0:07:51]} 26. Ng3 {[%emt 0:01:25]} Qe5 {[%emt 0:00:01]} 27. Ra4 {[%emt 0:01:41]} Bh6 {[%emt 0:03:48]} 28. Qd3 {[%emt 0:01:27]} Rc8 {[%emt 0:01:18]} 29. Qf5 {[%emt 0:03:04]} Qxf5 {[%emt 0:00:23]} 30. Nxf5 {[%emt 0:00:03]} Bf8 {[%emt 0:00:02]} 31. Bxa6 {[%emt 0:02:15]} Rcb8 {[%emt 0:00:33]} 32. Be2 {[%emt 0:04:40]} Rb1 {[%emt 0:01:41]} 33. Rad4 {[%emt 0:01:28]} R8b2 {[%emt 0:00:21]} 34. a4 {[%emt 0:10:30]} Rxd1+ {[%emt 0:00:04]} 35. Bxd1 {[%emt 0:00:06]} Nd7 {[%emt 0:05:27]} 36. f3 {[%emt 0:02:52]} e6 {[%emt 0:04:18]} 37. dxe6 {[%emt 0:01:30]} fxe6 {[%emt 0:00:02]} 38. Nxd6 {[%emt 0:00:09]} Bg7 {[%emt 0:00:05]} 39. Nc4 {[%emt 0:01:49]} Bxd4 {[%emt 0:00:04]} 40. Nxb2 {[%emt 0:00:06]} Bxb2 {[%emt 0:00:02]} 41. fxg4 {[%emt 0:30:01]} hxg4 {[%emt 0:30:12]} 42. Bxg4 {[%emt 0:00:03]} Kf7 {[%emt 0:01:14]} 43. a5 {[%emt 0:01:27]} Ba3 {[%emt 0:00:03]} 44. Kf2 {[%emt 0:01:33]} Bc5 {[%emt 0:01:10]} 45. Be2 {[%emt 0:00:45]} Nf6 {[%emt 0:00:36]} 46. Kf3 {[%emt 0:00:13]} Nd5 {[%emt 0:00:24]} 47. e4 {[%emt 0:01:00]} Ne7 {[%emt 0:00:02]} 48. a6 {[%emt 0:02:35]} Nc6 {[%emt 0:02:02]} 49. Bf1 {[%emt 0:00:00]} Ne5+ {[%emt 0:00:00]} 50. Kf4 {[%emt 0:00:00]} Ng6+ {[%emt 0:00:00]} 51. Kg4 {[%emt 0:00:00]} Kf6 {[%emt 0:00:00]} 52. g3 {[%emt 0:00:00]} Be3 {[%emt 0:00:00]} 53. Kh5 {[%emt 0:00:00]} Ne5 {[%emt 0:00:00]} 54. g4 {[%emt 0:00:00]} Kg7 {[%emt 0:00:00]} 55. g5 {[%emt 0:00:00]} Bf2 {[%emt 0:00:00]} 56. Bb5 {[%emt 0:00:00]} Ng6 {[%emt 0:00:00]} 57. Kg4 {[%emt 0:00:00]} Nxh4 {[%emt 0:00:00]} 58. a7 {[%emt 0:00:00]} Bxa7 {[%emt 0:00:00]} 59. Kxh4 {[%emt 0:00:00]} e5 {[%emt 0:00:00]} 1/2-1/2

[Event "Josef Kupper Memorial 2019"]
[Site "Zurich"]
[Date "2019.08.16"]
[Round "4.8"]
[White "Bogner, Sebastian"]
[Black "Karthik Venkataraman"]
[Result "1/2-1/2"]
[ECO "D85"]
[WhiteElo "2569"]
[BlackElo "2462"]
[Annotator "ChessBase"]
[PlyCount "47"]
[EventDate "2019.08.14"]
[EventType "swiss"]
[EventCountry "SUI"]
[SourceTitle "playchess.com"]
[Source "ChessBase"]
[SourceQuality "1"]
[TimeControl "40/5400+30:1800+30"]

1. d4 Nf6 2. c4 g6 3. Nc3 d5 4. cxd5 Nxd5 5. e4 Nxc3 6. bxc3 Bg7 7. Nf3 c5 8. Bb5+ Nc6 9. O-O cxd4 10. cxd4 O-O 11. Bxc6 bxc6 12. Ba3 Bg4 13. Bc5 Re8 14. Rb1 e5 15. dxe5 Qa5 16. Qc2 Bxf3 17. gxf3 Bxe5 18. Rfd1 Qc7 19. h3 Bf4 20. Bd4 Be5 21. Be3 Bf4 22. Bd4 Be5 23. Be3 Bf4 24. Bd4 1/2-1/2

[Event "Josef Kupper Memorial 2019"]
[Site "Zurich"]
[Date "2019.08.16"]
[Round "4.10"]
[White "Martirosyan, Haik M."]
[Black "Vorotnikov, Vladislav V"]
[Result "1-0"]
[ECO "A46"]
[WhiteElo "2619"]
[BlackElo "2417"]
[Annotator "RC"]
[PlyCount "61"]
[EventDate "2019.08.14"]
[EventType "swiss"]
[EventCountry "SUI"]
[SourceTitle "playchess.com"]
[Source "ChessBase"]
[SourceQuality "1"]
[TimeControl "40/5400+30:1800+30"]

1. d4 Nf6 2. Nf3 d6 3. g3 c6 4. Bg2 h6 5. c4 Bf5 6. Nc3 e6 7. d5 cxd5 8. cxd5 e5 9. O-O Nbd7 10. Ne1 g5 11. e4 Bg6 12. Nd3 Be7 13. Be3 Kf8 14. f4 gxf4 15. gxf4 exf4 16. Bxf4 Qb6+ 17. Kh1 Nh5 18. Ne2 Bg5 19. Bd2 Bxd2 20. Qxd2 Re8 21. Qc3 Rg8 22. Nd4 Rxe4 23. Nf5 Bxf5 24. Rxf5 Rxg2 25. Kxg2 Re2+ 26. Nf2 Ne5 27. Qh3 Qxf2+ 28. Rxf2 Nf4+ 29. Kh1 Nxh3 30. Rxe2 Nf4 31. Rd2 1-0

[Event "Josef Kupper Memorial 2019"]
[Site "Zurich"]
[Date "2019.08.16"]
[Round "4.11"]
[White "Theodorou, Nikolas"]
[Black "Ostovic, Matija"]
[Result "1-0"]
[ECO "E09"]
[WhiteElo "2548"]
[BlackElo "2397"]
[Annotator "ChessBase"]
[PlyCount "95"]
[EventDate "2019.08.14"]
[EventType "swiss"]
[EventCountry "SUI"]
[SourceTitle "playchess.com"]
[Source "ChessBase"]
[SourceQuality "1"]
[TimeControl "40/5400+30:1800+30"]

1. d4 Nf6 2. c4 e6 3. g3 d5 4. Bg2 Be7 5. Nf3 O-O 6. O-O Nbd7 7. Qc2 c6 8. Nbd2 b6 9. e4 dxc4 10. Nxc4 Bb7 11. Bf4 c5 12. Rfe1 cxd4 13. Nd6 Bxd6 14. Bxd6 Rc8 15. Qa4 Nc5 16. Qxd4 Re8 17. e5 Nfe4 18. b4 Nxd6 19. exd6 Nd7 20. Rac1 Bd5 21. Ne5 Bxg2 22. Kxg2 Nxe5 23. Qxe5 Qd7 24. Kg1 f6 25. Qd4 Red8 26. Rxc8 Rxc8 27. Rd1 b5 28. Qe4 Rc4 29. Qa8+ Rc8 30. Qf3 Kf7 31. Qh5+ Kg8 32. a4 bxa4 33. Qa5 Kf7 34. b5 Rc4 35. Qa6 Rc8 36. Qxa4 Rc5 37. Qb3 Ke8 38. Re1 Kf7 39. Rd1 Ke8 40. Qb1 Rxb5 41. Qxh7 Kf7 42. Qe4 a5 43. Qd4 Ke8 44. Rc1 Rb8 45. Qg4 Qxd6 46. Qxg7 Qe5 47. h4 Rd8 48. Rc7 1-0